bitfinex/quotes_ETHUSD_20250331
["timestamp","ask_amount","ask_price","bid_price","bid_amount"]
[1743412087586,6.3315,1799.5,1799.2,0.55]
[1743412087812,6.3315,1799.5,1799.2,6.10798]
[1743412088005,5.55746,1799.4,1799.2,0.55]
[1743412088297,12.2975,1799.5,1799.3,0.55]
[1743412088501,17.85479,1799.5,1799.3,0.55]
[1743412088815,11.11502,1799.4,1799.2,0.55]
[1743412089008,5.55741,1799.4,1799.2,0.55]
[1743412089214,5.55819,1799.2,1798.9,11.11775]
[1743412089516,5.55971,1798.7,1798.2,5.7252]
[1743412089717,17.08012,1798.6,1798.2,5.7252]
[1743412089936,11.52001,1798.6,1798.2,5.7252]
[1743412090294,5.5602,1798.5,1798.2,5.5609]
[1743412090597,6.35264,1798.4,1798.0,5.72602]
[1743412090805,6.35264,1798.4,1798.0,5.56158]
[1743412091010,11.91339,1798.4,1798.0,5.56158]
[1743412091211,6.35264,1798.4,1798.0,11.12316]
[1743412091423,6.35264,1798.4,1798.0,5.56158]
[1743412091624,11.91333,1798.4,1798.0,5.56158]
[1743412091931,0.7921,1798.4,1798.1,6.117418]
[1743412092127,3.0,1798.6,1798.1,1.106158]
[1743412092303,5.953,1798.5,1798.3,0.55]
[1743412093244,5.56063,1798.4,1798.0,5.56153]
[1743412093529,11.12131,1798.4,1798.0,5.56153]
[1743412093922,5.56063,1798.4,1798.1,5.56135]
[1743412094418,11.5132,1798.5,1798.2,0.55]
[1743412094626,5.953,1798.5,1798.2,0.55]
[1743412094934,0.784,1799.0,1798.7,6.10935]
[1743412095105,5.947,1799.0,1798.9,0.55]
[1743412095302,6.34173,1799.3,1798.9,11.6679]
[1743412095510,5.5586,1799.1,1798.9,0.55]
[1743412095731,11.50614,1799.2,1798.9,6.10891]
[1743412096148,5.948,1799.2,1798.9,0.55]
[1743412096304,5.55851,1799.1,1798.8,0.55]
[1743412096627,11.50604,1799.2,1798.8,6.720115]
[1743412096829,11.50604,1799.2,1798.8,12.279275]
[1743412097040,11.50604,1799.2,1798.8,6.720115]
[1743412097199,5.55843,1799.1,1798.8,0.55]
[1743412097517,5.55843,1799.1,1798.8,6.10915]
[1743412098098,5.55843,1799.1,1798.6,0.1643]
[1743412098099,5.55886,1799.0,1798.6,5.55986]
[1743412098310,6.31238,1799.0,1798.5,11.12021]
[1743412098508,11.11828,1798.9,1798.5,5.56008]
[1743412098711,5.933,1798.8,1798.6,0.55]
[1743412098914,5.933,1798.8,1798.6,11.66959]
[1743412099345,5.933,1798.8,1798.6,0.55]
[1743412100744,5.933,1798.8,1798.6,5.55971]
[1743412100952,5.933,1798.8,1798.6,11.11946]
[1743412101239,5.921,1798.9,1798.8,5.5592]
[1743412101457,5.921,1798.9,1798.6,5.55983]
[1743412101458,11.47996,1798.9,1798.6,5.55983]
[1743412102259,17.03907,1798.9,1798.6,5.55983]
[1743412102422,17.03907,1798.9,1798.5,11.6702]
[1743412102622,5.5593,1798.8,1798.5,6.11003]
[1743412102824,5.5593,1798.8,1798.5,0.55]
[1743412103023,11.11879,1798.8,1798.5,0.55]
[1743412103257,5.5593,1798.8,1798.5,0.55]
[1743412103479,11.48002,1798.9,1798.3,0.1643]
[1743412103744,3.0,1799.0,1798.4,6.16593442]
[1743412103964,6.31354,1799.2,1798.8,6.10926]
[1743412104162,5.903,1799.2,1799.0,5.5585]
[1743412104769,5.903,1799.2,1799.0,0.55]
[1743412105269,11.46102,1799.2,1799.0,0.55]
[1743412105844,5.903,1799.2,1799.0,0.55]
[1743412106045,5.903,1799.2,1799.0,6.10863]
[1743412106279,5.55836,1799.1,1798.8,5.7235]
[1743412106467,5.55836,1799.1,1798.9,0.55]
[1743412106653,11.46115,1799.2,1798.9,0.55]
[1743412106853,11.46115,1799.2,1798.9,6.10893]
[1743412107072,5.55771,1799.3,1799.0,5.55857]
[1743412107290,5.55771,1799.3,1799.0,5.55849]
[1743412107450,10.00562291,1799.5,1799.3,5.55761]
[1743412107451,6.6859,1799.5,1799.3,5.55761]
[1743412107647,5.887,1799.5,1799.4,0.55]
[1743412107850,5.887,1799.5,1799.1,0.55]
[1743412108072,5.55791,1799.3,1799.1,0.55]
[1743412108577,5.55802,1799.2,1798.9,5.55885]
[1743412108776,11.44348,1799.1,1798.7,5.55942]
[1743412108956,5.5588,1799.0,1798.6,0.1643]
[1743412109161,11.11772,1799.0,1798.6,5.72409]
[1743412109349,5.55895,1798.9,1798.6,5.55979]
[1743412109679,5.5588,1799.0,1798.7,6.10954]
[1743412109891,11.1176,1799.0,1798.7,5.55954]
[1743412110099,5.5588,1799.0,1798.7,5.55954]
[1743412110302,5.5588,1799.0,1798.4,5.72469]
[1743412110480,5.5588,1799.0,1798.7,0.55]
[1743412110999,17.00197,1799.1,1798.7,0.55]
[1743412111175,11.44334,1799.1,1798.7,5.55927]
[1743412111381,17.00196,1799.1,1798.7,5.55927]
[1743412111579,5.55867,1799.0,1798.7,5.55927]
[1743412111782,11.11747,1799.0,1798.7,5.55927]
[1743412112077,5.55867,1799.0,1798.7,5.55927]
[1743412113196,5.55907,1798.9,1798.6,0.55]
[1743412113599,11.11745,1799.0,1798.6,11.66953]
[1743412113778,11.11745,1799.0,1798.6,6.10974]
[1743412113973,5.55895,1798.9,1798.6,6.10974]
[1743412114519,5.55868,1799.0,1798.6,6.10974]
[1743412114813,5.55868,1799.0,1798.3,5.56079]
[1743412114814,9.54337653,1798.9,1798.3,5.56073]
[1743412115020,5.56001,1798.6,1798.2,5.72535]
[1743412115164,5.849,1798.5,1798.3,5.5605]
[1743412115365,11.4092,1798.5,1798.1,5.56137]
[1743412115599,5.5606,1798.4,1798.1,5.56137]
[1743412115813,5.5606,1798.4,1798.2,0.55]
[1743412115979,5.56085,1798.3,1797.9,5.5619]
[1743412116375,8.76597653,1798.3,1798.0,0.55]
[1743412116791,8.76597653,1798.3,1798.0,6.11168]
[1743412116975,8.76597653,1798.3,1798.0,0.55]
[1743412117303,8.76655653,1798.1,1797.8,5.56222]
[1743412117620,9.05412653,1798.1,1797.8,5.56221]
[1743412117923,11.41064,1798.1,1797.7,0.1643]
[1743412118067,6.38696,1798.0,1797.6,5.56285]
[1743412118282,5.851,1798.0,1797.6,6.119135]
[1743412118495,11.41289,1798.0,1797.6,6.119135]
[1743412118721,11.41289,1798.0,1797.7,0.55]
[1743412119197,5.851,1798.0,1797.8,5.56221]
[1743412119425,5.851,1798.0,1797.7,5.56262]
[1743412119593,5.851,1798.0,1797.7,11.12513]
[1743412119929,5.851,1798.0,1797.7,5.56251]
[1743412120095,5.851,1798.0,1797.8,5.56232]
[1743412120297,5.851,1798.0,1797.7,5.56249]
[1743412120501,12.24822,1798.2,1797.9,5.56195]
[1743412120999,17.80953,1798.2,1797.8,6.11234]
[1743412121428,10.34221071,1798.2,1797.6,0.55]
[1743412121734,21.46465071,1798.2,1797.8,5.56224]
[1743412122030,11.12303,1798.1,1797.7,5.56241]
[1743412122200,5.56173,1798.0,1797.9,0.10503896]
[1743412122407,5.56173,1798.0,1797.8,0.10779372]
[1743412122719,5.56142,1798.1,1797.9,0.10779372]
[1743412123105,5.56142,1798.1,1797.8,5.56234]
[1743412123288,15.90332071,1798.2,1797.8,11.12458]
[1743412123497,6.6871,1798.2,1797.9,0.65779372]
[1743412123732,6.6871,1798.2,1797.9,6.21973372]
[1743412123912,6.6871,1798.2,1797.9,6.21969372]
[1743412124728,12.24826,1798.2,1797.9,0.65779372]
[1743412124889,12.12312271,1798.2,1797.9,0.10779372]
[1743412125230,11.12331,1798.1,1797.7,6.11252]
[1743412125399,5.56143,1798.1,1797.4,0.1643]
[1743412125600,5.56143,1798.1,1797.3,11.12741]
[1743412125601,5.56267,1797.7,1797.3,11.12741]
[1743412125793,11.41167,1797.7,1797.3,5.56366]
[1743412126313,11.41167,1797.7,1797.4,0.55]
[1743412127227,5.849,1797.7,1797.4,0.55]
[1743412127403,5.849,1797.7,1797.1,0.2643]
[1743412127404,5.5631,1797.6,1797.2,5.5641]
[1743412127598,11.41193,1797.7,1797.3,5.56361]
[1743412127803,5.849,1797.7,1797.3,5.56388]
[1743412128213,11.41177,1797.7,1797.3,5.56378]
[1743412128523,5.849,1797.7,1797.4,5.56344]
[1743412129137,5.849,1797.7,1797.4,11.12692]
[1743412129308,5.849,1797.7,1797.4,5.56344]
[1743412129504,11.41166,1797.7,1797.4,5.56344]
[1743412129734,11.41166,1797.7,1797.3,0.55]
[1743412129735,7.99282407,1797.7,1797.3,0.55]
[1743412129909,5.56309,1797.6,1797.3,0.55]
[1743412130116,5.56309,1797.6,1797.3,6.1138]
[1743412130296,5.56309,1797.6,1797.3,0.55]
[1743412130925,5.56338,1797.5,1797.3,0.55]
[1743412131320,11.12684,1797.5,1797.2,0.55]
[1743412131623,0.754,1797.3,1797.2,0.55]
[1743412131829,5.84,1797.3,1797.2,0.55]
[1743412132620,5.84,1797.3,1797.1,0.1]
[1743412133412,5.84,1797.3,1797.1,5.66448]
[1743412133615,5.84,1797.3,1797.1,11.2289]
[1743412133838,5.84,1797.3,1797.1,5.66442]
[1743412134336,5.84,1797.3,1797.1,5.66437]
[1743412135248,5.84,1797.3,1797.2,5.56421]
[1743412135425,5.84,1797.3,1797.1,5.66437]
[1743412135626,5.84,1797.3,1797.2,5.56421]
[1743412135805,0.803,1797.5,1797.2,5.56421]
[1743412136000,7.44431071,1797.8,1797.3,0.55]
[1743412136205,5.819,1797.7,1797.5,5.5631]
[1743412136638,9.35159,1797.8,1797.5,5.5631]
[1743412136837,5.818,1797.7,1797.5,0.55]
[1743412137234,5.818,1797.7,1797.5,6.11315]
[1743412137536,5.56317,1797.6,1797.2,5.56417]
[1743412137741,5.818,1797.7,1797.3,0.05563023]
[1743412137940,5.851,1797.7,1797.5,5.56325]
[1743412138343,5.851,1797.7,1797.3,5.56377]
[1743412138511,5.851,1797.7,1797.4,6.11346]
[1743412139239,5.851,1797.7,1797.4,11.67695]
[1743412139538,0.7892,1797.8,1797.6,6.11297]
[1743412139747,11.40716,1797.9,1797.6,6.11294]
[1743412139911,3.2103704,1797.8,1797.3,5.56388]
[1743412140237,8.7729204,1797.8,1797.5,0.55]
[1743412140413,5.56283,1797.7,1797.5,0.55]
[1743412140925,8.7727204,1797.8,1797.5,0.55]
[1743412141321,5.56287,1797.7,1797.5,0.55]
[1743412141644,15.79701244,1797.8,1797.5,0.55]
[1743412141844,10.23455244,1797.8,1797.5,6.11321]
[1743412142229,4.67214244,1797.8,1797.5,0.55]
[1743412142430,5.56285,1797.7,1797.5,0.55]
[1743412142634,4.67214244,1797.8,1797.5,0.55]
[1743412142830,5.56296,1797.7,1797.5,0.55]
[1743412143231,10.23456244,1797.8,1797.5,0.55]
[1743412143439,4.67214244,1797.8,1797.5,0.55]
[1743412143750,5.56183,1798.0,1797.7,5.56262]
[1743412144045,5.832,1797.8,1797.7,5.56262]
[1743412144256,11.39442,1797.8,1797.5,6.11321]
[1743412144761,9.5248304,1797.7,1797.4,0.55]
[1743412144917,15.0876804,1797.7,1797.4,0.55]
[1743412145119,6.4207408,1797.6,1797.1,0.1]
[1743412145327,3.2103704,1797.2,1797.1,0.1]
[1743412145660,9.0613704,1797.2,1797.1,0.1]
[1743412145822,14.6255804,1797.2,1797.1,0.1]
[1743412146217,9.0613704,1797.2,1797.1,0.1]
[1743412147825,5.851,1797.2,1797.1,0.1]
[1743412149190,5.851,1797.2,1797.1,6.21452]
[1743412150039,5.56331,1797.5,1797.2,0.55]
[1743412150239,5.826,1797.4,1797.2,0.55]
[1743412150672,5.824,1797.4,1797.2,6.27837]
[1743412150851,9.5953204,1797.8,1797.4,5.5635]
[1743412151158,9.0343704,1797.6,1797.5,0.55]
[1743412151343,9.0343704,1797.6,1797.4,0.55]
[1743412151655,14.5975304,1797.6,1797.2,5.72824]
[1743412151843,14.5975304,1797.6,1797.3,0.55]
[1743412152163,5.824,1797.6,1797.4,5.56328]
[1743412152365,5.824,1797.6,1797.5,6.11328]
[1743412152670,9.6167704,1797.6,1797.1,0.1]
[1743412152862,3.2103704,1797.3,1797.1,0.1]
[1743412153057,11.12758,1797.4,1797.1,0.1]
[1743412153264,5.56377,1797.4,1797.2,0.55]
[1743412153684,0.7815,1797.4,1797.1,0.1]
[1743412153987,5.56403,1797.3,1797.1,0.1]
[1743412154390,11.38921,1797.2,1797.1,0.1]
[1743412156485,5.825,1797.2,1797.1,0.1]
[1743412156889,11.38921,1797.2,1797.1,0.1]
[1743412157545,14.38921,1797.2,1797.1,0.1]
[1743412157754,17.20067104,1797.2,1797.1,1e-05]
[1743412157949,22.25353275,1797.2,1797.1,1e-05]
[1743412158178,22.66217211,1797.2,1796.3,14.5]
[1743412158347,8.7768404,1796.5,1796.3,14.5]
[1743412158555,3.2103704,1796.5,1796.3,14.5]
[1743412158755,3.2103704,1796.5,1796.2,5.73143]
[1743412159294,17.71884,1796.6,1796.2,20.23143]
[1743412159496,5.56656,1796.5,1796.2,0.1643]
[1743412159900,5.56656,1796.5,1796.3,0.55]
[1743412160351,11.13319,1796.5,1796.3,0.55]
[1743412160555,5.56656,1796.5,1796.3,0.55]
[1743412160789,5.56656,1796.5,1796.4,0.10813115]
[1743412160991,15.3629404,1796.6,1796.3,0.55]
[1743412161310,14.5874404,1796.6,1796.4,0.11700439]
[1743412161469,20.1536804,1796.6,1796.4,0.11700439]
[1743412161669,5.56644,1796.5,1796.3,0.55]
[1743412162718,5.56668,1796.4,1796.3,0.55]
[1743412163019,5.56644,1796.5,1796.3,0.55]
[1743412163421,5.811,1796.6,1796.3,6.11693]
[1743412163568,3.8194,1796.8,1796.3,6.11693]
[1743412163569,6.35077,1797.0,1796.5,0.55]
[1743412163903,5.56527,1796.9,1796.5,6.11613]
[1743412164077,15.3721204,1797.0,1796.7,0.55]
[1743412164279,5.56424,1797.2,1796.8,6.11544]
[1743412164469,9.0333704,1797.4,1797.2,5.56416]
[1743412164673,3.2103704,1797.4,1797.2,5.56416]
[1743412164882,5.56409,1797.3,1797.0,0.55]
[1743412165091,5.56424,1797.2,1797.0,0.55]
[1743412165487,5.5637,1797.4,1797.0,11.67944]
[1743412165709,3.2103704,1797.3,1797.0,6.1147]
[1743412165898,3.2103704,1797.3,1797.0,11.67943]
[1743412166101,3.2103704,1797.3,1797.0,6.1147]
[1743412166420,8.7743804,1797.3,1797.0,6.1147]
[1743412166576,3.2103704,1797.3,1797.0,11.67937]
[1743412166903,3.2103704,1797.3,1797.0,11.67939]
[1743412167106,3.2103704,1797.3,1797.0,6.11467]
[1743412167282,8.7743004,1797.3,1797.0,6.11467]
[1743412167680,14.3383904,1797.3,1797.0,0.55]
[1743412167895,14.3383904,1797.3,1796.9,5.72942]
[1743412167896,5.56421,1797.2,1796.9,0.1643]
[1743412168226,15.77223944,1797.3,1796.9,5.72924]
[1743412168578,5.56422,1797.2,1796.9,5.72924]
[1743412169129,5.56475,1797.1,1796.9,0.1643]
[1743412169280,11.12867,1797.2,1796.9,0.1643]
[1743412169479,5.56452,1797.1,1796.9,0.1643]
[1743412169930,5.56422,1797.2,1796.9,0.1643]
[1743412170237,5.56513,1796.9,1796.5,11.13262]
[1743412170442,3.2103704,1796.9,1796.6,5.56595]
[1743412170727,3.2103704,1796.9,1796.7,0.55]
[1743412171086,8.7757304,1796.9,1796.5,5.56628]
[1743412171288,8.7757304,1796.9,1796.5,5.62189794]
[1743412171537,14.3411004,1796.9,1796.5,5.56624]
[1743412171822,5.56548,1796.8,1796.6,0.55]
[1743412172010,12.56528804,1796.8,1796.6,0.55]
[1743412172192,5.56587,1796.7,1796.4,5.73082]
[1743412172400,8.7762404,1796.7,1796.4,5.73082]
[1743412173224,8.7762404,1796.7,1796.4,0.55]
[1743412173426,8.7762404,1796.7,1796.4,6.11661]
[1743412173628,9.0403704,1796.7,1796.2,5.56721]
[1743412173837,5.56659,1796.5,1796.2,5.56729]
[1743412173985,6.32459,1796.6,1796.3,0.55]
[1743412173986,11.89083,1796.6,1796.3,0.55]
[1743412174187,6.32459,1796.6,1796.3,6.11695]
[1743412174387,6.32459,1796.6,1796.3,5.56695]
[1743412174823,9.0403704,1796.7,1796.4,5.56643]
[1743412175026,9.0403704,1796.7,1796.5,5.56637]
[1743412175409,9.0403704,1796.7,1796.4,5.56643]
[1743412175593,9.31808,1796.8,1796.5,11.29684]
[1743412175594,3.0,1796.8,1796.5,11.29684]
[1743412175801,8.56547,1796.8,1796.5,5.56626]
[1743412175985,8.56547,1796.8,1796.5,20.06626]
[1743412176191,3.0,1796.8,1796.5,20.06625]
[1743412176392,3.0,1796.8,1796.6,5.56602]
[1743412176598,8.56551,1796.8,1796.5,20.06625]
[1743412177118,3.0,1796.8,1796.5,25.6325]
[1743412177281,3.2103704,1796.9,1796.5,14.5]
[1743412177485,0.7525,1797.1,1796.8,0.55]
[1743412177486,15.3615604,1797.1,1796.8,0.55]
[1743412177718,3.2103704,1796.9,1796.7,0.55]
[1743412177916,8.7756504,1796.9,1796.5,5.56637]
[1743412178111,8.7756504,1796.9,1796.6,0.55]
[1743412178330,9.65321544,1796.9,1796.6,0.55]
[1743412178789,9.65313544,1796.9,1796.6,0.55]
[1743412179540,3.0,1797.0,1796.7,5.56565]
[1743412179690,12.0373704,1797.0,1796.8,5.56542]
[1743412180024,9.0373704,1797.0,1796.8,0.55]
[1743412180228,9.0453704,1797.2,1796.9,5.56495]
[1743412180392,3.2103704,1797.2,1796.9,11.12994]
[1743412180580,9.0453704,1797.2,1796.9,11.12997]
[1743412181000,14.6096004,1797.2,1796.9,5.56495]
[1743412181792,9.0453704,1797.2,1797.0,5.56482]
[1743412182318,5.56306,1797.6,1797.3,0.55]
[1743412182623,8.56312,1797.6,1797.3,11.67754]
[1743412182799,8.563,1797.6,1797.3,6.11374]
[1743412183117,5.563,1797.6,1797.3,6.11374]
[1743412183318,3.2103704,1797.7,1797.4,5.56359]
[1743412183622,5.824,1797.8,1797.6,6.11297]
[1743412183921,0.8155,1798.0,1797.8,6.11213]
[1743412184123,11.7719504,1798.1,1797.8,0.55]
[1743412184419,11.7719504,1798.1,1797.8,6.11235]
[1743412184625,14.32115264,1798.1,1797.8,6.11235]
[1743412184821,3.2103704,1797.9,1797.8,0.55]
[1743412185215,8.7724504,1797.9,1797.7,0.55]
[1743412185556,3.0,1797.7,1797.1,0.1643]
[1743412185825,10.03476121,1797.4,1796.9,5.56498]
[1743412186034,5.847,1797.3,1796.9,11.12997]
[1743412186323,11.41114,1797.3,1796.8,5.56532]
[1743412186491,7.99159512,1797.3,1796.6,5.78596899]
[1743412186696,5.847,1797.3,1797.1,5.56439]
[1743412187093,5.847,1797.3,1797.2,0.55]
[1743412187297,5.847,1797.3,1797.1,0.55]
[1743412187519,15.07020121,1797.3,1796.9,5.56498]
[1743412187723,7.07138012,1797.2,1796.8,11.68045]
[1743412187900,15.07020121,1797.3,1797.0,0.55]
[1743412188105,9.50617121,1797.3,1797.0,6.11479]
[1743412188307,9.50617121,1797.3,1797.0,6.11466]
[1743412188808,15.07012121,1797.3,1797.0,0.55]
[1743412189726,5.56422,1797.2,1797.0,0.55]
[1743412190092,20.63429121,1797.3,1797.0,0.55]
[1743412190296,22.69772033,1797.3,1797.0,0.55]
[1743412190710,17.13355033,1797.3,1797.0,0.55]
[1743412191300,22.69771033,1797.3,1797.0,0.55]
[1743412191496,17.13355033,1797.3,1797.0,0.55]
[1743412191831,5.56421,1797.2,1797.0,0.55]
[1743412191998,7.83398603,1797.2,1796.8,6.11544]
[1743412192197,6.38569,1797.1,1796.7,5.56561]
[1743412192396,7.83399603,1797.2,1796.6,5.56606]
[1743412192703,5.838,1797.1,1796.9,5.56513]
[1743412193029,5.838,1797.1,1796.8,5.56518]
[1743412193224,5.838,1797.1,1796.7,6.11565]
[1743412193426,0.8226,1797.0,1796.5,0.1643]
[1743412193630,0.8226,1797.0,1796.7,5.56575]
[1743412194198,5.56515,1796.9,1796.5,5.73062]
[1743412194511,2.601593,1797.0,1796.6,5.56591]
[1743412194918,2.601593,1797.0,1796.6,11.13186]
[1743412195227,8.166443,1797.0,1796.6,5.56591]
[1743412195437,8.166443,1797.0,1796.6,5.56588]
[1743412195634,0.8226,1797.0,1796.5,0.7143]
[1743412195930,5.838,1797.1,1796.8,5.56527]
[1743412196096,11.40253,1797.1,1796.7,5.56557]
[1743412196303,11.40253,1797.1,1796.7,11.13119]
[1743412196504,5.838,1797.1,1796.9,5.56504]
[1743412196716,5.838,1797.1,1796.8,0.55]
[1743412197116,5.56502,1797.0,1796.7,0.55]
[1743412197323,6.978239,1797.1,1796.7,6.1156]
[1743412197704,12.542799,1797.1,1796.7,20.6156]
[1743412197912,12.542799,1797.1,1796.7,15.05]
[1743412198121,5.56483,1797.0,1796.7,15.05]
[1743412198334,18.107549,1797.1,1796.7,20.61573]
[1743412198537,18.107549,1797.1,1796.7,6.11573]
[1743412198736,12.542799,1797.1,1796.7,6.11573]
[1743412199109,9.22340121,1797.2,1796.8,5.56542]
[1743412199311,5.83,1797.0,1796.8,5.56542]
[1743412200739,0.8063,1797.3,1797.0,5.56452]
[1743412200910,5.826,1797.4,1797.1,5.56431]
[1743412201111,11.38969,1797.4,1797.0,5.56476]
[1743412201412,3.65917121,1797.2,1796.7,20.06572]
[1743412201626,9.22367121,1797.2,1796.8,6.11524]
[1743412201838,9.22367121,1797.2,1796.8,11.68058]
[1743412202041,9.22367121,1797.2,1796.8,6.11524]
[1743412202243,9.22355121,1797.2,1796.8,6.11524]
[1743412202418,16.09267633,1797.2,1796.8,6.11524]
[1743412202619,16.09254633,1797.2,1796.8,6.11524]
[1743412202814,16.09258633,1797.2,1796.8,6.11524]
[1743412203221,5.56454,1797.1,1796.8,0.55]
[1743412203618,5.821,1797.0,1796.8,6.1154]
[1743412203823,5.821,1797.0,1796.8,0.55]
[1743412204049,11.38587,1797.0,1796.8,0.55]
[1743412204353,5.821,1797.0,1796.8,0.55]
[1743412204547,6.3522,1796.9,1796.5,5.56627]
[1743412204843,5.56591,1796.7,1796.3,5.56693]
[1743412205049,15.524454,1797.0,1795.3,0.28139565]
[1743412205050,0.55,1796.2,1795.3,0.28139565]
[1743412205211,5.5704,1795.2,1795.1,5.06277202]
[1743412205413,5.57196,1794.7,1794.6,8.39105022]
[1743412205612,19.14343121,1794.7,1794.6,2.60192902]
[1743412205910,18.70599308,1794.7,1794.6,9.02e-06]
[1743412206108,8.57289,1794.4,1794.3,5.7891212]
[1743412206410,17.24375749,1794.4,1794.3,1.2e-06]
[1743412206746,3.0,1794.0,1793.2,5.57661]
[1743412206927,3.22173308,1793.7,1793.3,5.57621]
[1743412207341,3.22173308,1793.4,1793.1,3.75358127]
[1743412207541,3.22173308,1793.4,1793.2,0.12008723]
[1743412207751,9.79807037,1793.5,1793.1,9.33049127]
[1743412207953,3.67507037,1793.3,1793.2,0.12008723]
[1743412208136,3.67507037,1793.7,1793.5,5.57568]
[1743412208334,3.0,1794.2,1793.7,5.57491]
[1743412208645,3.67507037,1793.9,1793.5,5.57551]
[1743412208840,3.67507037,1793.9,1793.8,0.12675962]
[1743412209049,3.67507037,1793.9,1793.5,5.57551]
[1743412209247,3.67507037,1793.7,1793.2,10.57736685]
[1743412209569,3.67507037,1793.7,1793.3,5.57626]
[1743412209748,3.67507037,1793.7,1793.4,5.57598]
[1743412209952,3.67507037,1793.7,1793.3,5.57611]
[1743412210135,3.67507037,1793.5,1793.1,3.75358127]
[1743412210344,3.67507037,1793.3,1793.1,3.75358127]
[1743412210668,5.57662,1793.2,1793.1,3.75358127]
[1743412211083,8.57662,1793.2,1793.1,3.75358127]
[1743412211224,3.8138,1793.2,1793.1,3.75358127]
[1743412211425,10.0068,1793.2,1793.1,3.75358127]
[1743412211862,0.8138,1793.7,1793.1,3.75358127]
[1743412212069,8.57572,1793.5,1793.1,3.75358127]
[1743412212269,3.0,1793.2,1793.1,3.75358127]
[1743412212472,8.57662,1793.2,1793.1,3.75358127]
[1743412212771,9.39042,1793.2,1793.1,3.75358127]
[1743412213068,10.0168,1793.2,1793.1,3.75358127]
[1743412213228,15.60242,1793.2,1793.1,3.75358127]
[1743412213559,18.08781204,1793.2,1793.1,3.75358127]
[1743412214680,0.8107,1792.9,1792.1,0.1]
[1743412214875,0.8107,1792.9,1791.0,1.77714]
[1743412214876,3.0,1791.9,1791.0,1.67714]
[1743412215082,5.58284,1791.2,1790.1,0.1]
[1743412215380,5.58284,1791.2,1790.4,5.58505]
[1743412215381,15.57991037,1791.2,1790.4,5.58505]
[1743412215575,11.90484,1791.2,1790.7,5.58435]
[1743412215781,6.322,1791.2,1790.7,5.58418]
[1743412215981,11.90484,1791.2,1790.6,5.58459]
[1743412216278,6.401,1791.3,1790.6,5.58464]
[1743412216577,8.58223,1791.4,1790.9,5.58376]
[1743412216877,3.0,1791.4,1791.0,5.58345]
[1743412217076,3.0,1791.4,1791.1,5.68301]
[1743412217381,3.0,1791.1,1790.5,0.10615003]
[1743412217541,3.0,1791.1,1790.5,5.69112003]
[1743412217542,6.612,1791.1,1790.5,5.69112003]
[1743412217746,5.58425,1790.8,1790.5,0.10615003]
[1743412217952,3.0,1790.9,1790.7,5.58435]
[1743412218175,3.0,1791.0,1790.6,5.58472]
[1743412218375,0.7577,1791.4,1790.9,5.58363]
[1743412218605,0.7577,1791.4,1791.3,5.58253]
[1743412218780,5.5817,1791.6,1791.1,5.58308]
[1743412219050,5.58193,1791.5,1791.3,0.12715291]
[1743412219260,3.0,1791.3,1791.0,5.58346]
[1743412219545,5.58193,1791.5,1790.8,0.55]
[1743412219546,8.58191,1791.5,1790.8,0.55]
[1743412219763,3.0,1791.4,1791.0,5.58321]
[1743412220149,8.58223,1791.4,1791.1,0.12715291]
[1743412220346,6.998894,1791.4,1790.9,5.58355]
[1743412220577,5.58267,1791.3,1791.0,0.12715291]
[1743412220800,6.66,1791.2,1791.0,0.12715291]
[1743412221393,4.3915676,1791.6,1791.0,0.12715291]
[1743412221394,9.9733076,1791.6,1791.0,0.12715291]
[1743412221559,6.63875,1791.8,1791.0,5.58344]
[1743412221760,1.0577,1791.8,1791.6,5.58156]
[1743412222075,6.67,1792.1,1791.7,5.58109]
[1743412222274,0.7586,1792.2,1791.7,5.70680723]
[1743412222498,0.7586,1792.2,1791.8,5.58086]
[1743412222671,6.33848,1792.2,1791.8,5.58096]
[1743412223003,6.33848,1792.2,1790.5,0.10615003]
[1743412223004,5.5841,1790.8,1790.5,0.10615003]
[1743412223204,6.794,1790.9,1790.5,0.10615003]
[1743412223379,8.58411,1790.8,1790.5,0.10615003]
[1743412223574,13.615567,1790.9,1790.5,0.10615003]
[1743412223773,19.199577,1790.9,1790.5,0.10615003]
[1743412223973,5.58467,1790.7,1790.5,0.10615003]
[1743412224179,3.0,1790.8,1790.5,0.10615003]
[1743412224395,5.58459,1790.7,1790.5,0.10615003]
[1743412224903,9.6874077,1790.8,1790.5,0.10615003]
[1743412225201,4.1031777,1790.8,1790.5,0.10615003]
[1743412225401,11.16857,1790.8,1790.5,0.10615003]
[1743412225907,11.16904,1790.7,1790.5,0.10615003]
[1743412226200,3.0,1790.6,1790.5,0.10615003]
[1743412226402,15.37772,1790.6,1790.5,0.10615003]
[1743412226805,3.0,1790.6,1790.5,0.10615003]
[1743412227012,12.38142,1790.7,1790.5,0.10615003]
[1743412227214,5.58366,1791.0,1790.5,0.10615003]
[1743412227508,6.23398287,1791.8,1791.3,5.58241]
[1743412227810,0.62339829,1791.7,1791.4,0.10760332]
[1743412227974,0.62339829,1791.7,1791.1,5.58314]
[1743412228179,5.58224,1791.4,1791.2,0.11241674]
[1743412228505,5.58224,1791.4,1790.5,0.10615003]
[1743412228506,4.71586672,1791.3,1790.5,0.10615003]
[1743412228679,3.0,1790.7,1790.5,0.10615003]
[1743412228875,6.876,1790.7,1790.5,0.10615003]